lending/lending_fUSD_20250122
["ID","MTS","AMOUNT","RATE_DAILY","PERIOD"]
[350005290,1737562233450,-655.562074,0.00020861,2]
[350005291,1737562233460,-755.32,0.00020861,2]
[350005292,1737562233470,-1997.72,0.00020861,2]
[350005293,1737562233479,-500.0,0.00020861,2]
[350005294,1737562233489,-968.77,0.00020861,2]
[350005295,1737562233499,-931.3127,0.00020861,2]
[350005296,1737562233509,-159.697543,0.00020861,2]
[350005297,1737562233518,-500.0,0.00020861,2]
[350005298,1737562233528,-500.0,0.00020861,2]
[350005299,1737562233537,-159.18752,0.00020861,2]
[350005300,1737562233547,-531.19,0.00020861,2]
[350005301,1737562233557,-1137.49,0.00020861,2]
[350005302,1737562233566,-845.5,0.00020861,2]
[350005303,1737562233576,-500.0,0.00020861,2]
[350005304,1737562233585,-500.0,0.00020861,2]
[350005305,1737562233595,-909.3,0.00020861,2]
[350005306,1737562233605,-1290.97,0.00020861,2]
[350005307,1737562233614,-946.34,0.00020861,2]
[350005308,1737562233624,-1602.41,0.00020861,2]
[350005309,1737562233634,-1025.96,0.00020861,2]
[350005310,1737562233644,-500.0,0.00020861,2]
[350005311,1737562233653,-692.03,0.00020861,2]
[350005312,1737562233662,-2673.85,0.00020861,2]
[350005313,1737562233672,-2069.64,0.00020861,2]
[350005314,1737562233681,-1412.17,0.00020861,2]
[350005315,1737562233691,-923.65,0.00020861,2]
[350005316,1737562233700,-2300.71,0.00020861,2]
[350005317,1737562233710,-2775.47,0.00020861,2]
[350005318,1737562233719,-528.22,0.00020861,2]
[350005319,1737562233729,-500.0,0.00020861,2]
[350005320,1737562233738,-1219.61,0.00020861,2]
[350005321,1737562233748,-1240.55,0.00020861,2]
[350005322,1737562233757,-2988.57,0.00020861,2]
[350005323,1737562233766,-1053.27,0.00020861,2]
[350005324,1737562233775,-500.0,0.00020863,2]
[350005325,1737562233785,-500.0,0.00020863,2]
[350005326,1737562233794,-500.0,0.00020863,2]
[350005327,1737562233804,-624.68076286,0.00020863,2]
[350005328,1737562233814,-542.31798793,0.00020863,2]
[350005329,1737562233824,-500.0,0.00020863,2]
[350005330,1737562233834,-500.0,0.00020863,2]
[350005331,1737562233844,-603.8,0.00020863,2]
[350005332,1737562233854,-699.39,0.00020863,2]
[350005333,1737562233863,-500.0,0.00020863,2]
[350005334,1737562233873,-262.32725821,0.00020863,2]
[350005335,1737562233883,-500.0,0.00020863,2]
[350005336,1737562233893,-500.0,0.00020863,2]
[350005337,1737562233903,-804.55,0.00020863,2]
[350005338,1737562233912,-500.0,0.00020863,2]
[350005339,1737562233922,-626.19,0.00020863,2]
[350005340,1737562233932,-500.0,0.00020863,2]
[350005341,1737562233942,-500.0,0.00020863,2]
[350005342,1737562233952,-500.0,0.00020863,2]
[350005343,1737562233961,-500.0,0.00020863,2]
[350005344,1737562233971,-595.08,0.00020863,2]
[350005345,1737562233981,-605.8,0.00020863,2]
[350005346,1737562233991,-500.0,0.00020863,2]
[350005347,1737562234000,-500.0,0.00020863,2]
[350005348,1737562234011,-500.0,0.00020863,2]
[350005349,1737562234020,-685.56,0.00020863,2]
[350005350,1737562234029,-500.0,0.00020863,2]
[350005351,1737562234039,-500.0,0.00020863,2]
[350005352,1737562234048,-500.0,0.00020863,2]
[350005353,1737562234058,-200.0,0.00020863,2]
[350005354,1737562234067,-500.0,0.00020863,2]
[350005355,1737562234078,-500.0,0.00020863,2]
[350005356,1737562234088,-500.0,0.00020863,2]
[350005357,1737562234098,-500.0,0.00020863,2]
[350005358,1737562234108,-500.0,0.00020863,2]
[350005359,1737562234117,-500.0,0.00020863,2]
[350005360,1737562234127,-434.56573352,0.00020863,2]
[350005361,1737562234158,-1139.03,0.00020783,2]
[350005362,1737562234169,-70.27112692,0.00020863,2]
[350005363,1737562234181,-798.59,0.00020863,2]
[350005364,1737562234190,-500.0,0.00020863,2]
[350005365,1737562234200,-500.0,0.00020863,2]
[350005366,1737562234210,-402.90280971,0.00020863,2]
[350005367,1737562234220,-500.0,0.00020863,2]
[350005368,1737562234229,-501.61061636,0.00020863,2]
[350005369,1737562234239,-500.0,0.00020863,2]
[350005370,1737562234250,-500.0,0.00020863,2]
[350005371,1737562234260,-500.0,0.00020863,2]
[350005372,1737562234269,-500.0,0.00020863,2]
[350005373,1737562234278,-179.69546421,0.00020863,2]
[350005374,1737562234294,-320.30453579,0.00020863,2]
[350005375,1737562234303,-500.0,0.00020863,2]
[350005376,1737562234312,-500.0,0.00020863,2]
[350005377,1737562234322,-502.27282065,0.00020863,2]
[350005378,1737562234331,-500.0,0.00020863,2]
[350005379,1737562234342,-500.0,0.00020863,2]
[350005380,1737562234352,-500.0,0.00020863,2]
[350005381,1737562234361,-501.41600051,0.00020863,2]
[350005382,1737562234370,-500.0,0.00020863,2]
[350005383,1737562234379,-629.56,0.00020863,2]
[350005384,1737562234389,-500.0,0.00020863,2]
[350005385,1737562234400,-500.0,0.00020863,2]
[350005386,1737562234409,-500.0,0.00020863,2]
[350005387,1737562234419,-541.93226932,0.00020863,2]
[350005388,1737562234428,-500.0,0.00020863,2]
[350005389,1737562234437,-500.0,0.00020863,2]
[350005390,1737562234451,-500.0,0.00020863,2]
[350005391,1737562234461,-500.0,0.00020863,2]
[350005392,1737562234471,-500.0,0.00020863,2]
[350005393,1737562234480,-500.0,0.00020863,2]
[350005394,1737562234490,-521.28214997,0.00020863,2]
[350005395,1737562234499,-500.0,0.00020863,2]
[350005396,1737562234508,-500.0,0.00020863,2]
[350005397,1737562234518,-380.1300443,0.00020863,2]
[350005398,1737562234527,-500.0,0.00020863,2]
[350005399,1737562234536,-500.0,0.00020863,2]
[350005400,1737562234547,-888.45,0.00020863,2]
[350005401,1737562234557,-500.0,0.00020863,2]
[350005402,1737562234566,-500.0,0.00020863,2]
[350005403,1737562234576,-500.0,0.00020863,2]
[350005404,1737562234586,-500.0,0.00020863,2]
[350005405,1737562234595,-500.0,0.00020863,2]
[350005406,1737562234604,-500.0,0.00020863,2]
[350005407,1737562234614,-500.0,0.00020863,2]
[350005408,1737562234623,-500.0,0.00020863,2]
[350005409,1737562234632,-500.0,0.00020863,2]
[350005410,1737562234642,-526.08178114,0.00020863,2]
[350005411,1737562234652,-500.0,0.00020863,2]
[350005412,1737562234662,-500.0,0.00020863,2]
[350005413,1737562234671,-502.88653398,0.00020863,2]
[350005414,1737562234680,-744.52,0.00020863,2]
[350005415,1737562234690,-276.32648131,0.00020863,2]
[350005416,1737562234702,-500.0,0.00020863,2]
[350005417,1737562234711,-500.0,0.00020863,2]
[350005418,1737562234720,-500.0,0.00020863,2]
[350005419,1737562234729,-860.64,0.00020863,2]
[350005420,1737562234739,-500.0,0.00020863,2]
[350005421,1737562234747,-500.0,0.00020863,2]
[350005422,1737562234756,-500.0,0.00020863,2]
[350005423,1737562234766,-500.0,0.00020863,2]
[350005424,1737562234775,-500.0,0.00020863,2]
[350005425,1737562234785,-500.0,0.00020863,2]
[350005426,1737562234794,-500.0,0.00020863,2]
[350005427,1737562234804,-500.0,0.00020863,2]
[350005428,1737562234813,-500.0,0.00020863,2]
[350005429,1737562234822,-502.11845604,0.00020863,2]
[350005430,1737562234832,-500.0,0.00020863,2]
[350005431,1737562234842,-699.32,0.00020863,2]
[350005432,1737562234852,-505.96040558,0.00020863,2]
[350005433,1737562234862,-500.0,0.00020863,2]
[350005434,1737562234872,-501.48074197,0.00020863,2]
[350005435,1737562234881,-500.0,0.00020863,2]
[350005436,1737562234891,-499.1770922,0.00020863,2]
[350005437,1737562234901,-500.0,0.00020863,2]
[350005438,1737562234911,-500.0,0.00020863,2]
[350005439,1737562234920,-500.0,0.00020863,2]
[350005440,1737562234930,-500.0,0.00020863,2]
[350005441,1737562234939,-500.0,0.00020863,2]
[350005442,1737562234954,-609.23495272,0.00020863,2]
[350005443,1737562234963,-500.0,0.00020863,2]
[350005444,1737562234973,-239.31460416,0.00020863,2]
[350005445,1737562235154,-52.59233867,0.00020863,2]
[350005446,1737562235168,-500.0,0.00020863,2]
[350005447,1737562235178,-504.39430439,0.00020863,2]
[350005448,1737562235186,-995.44,0.00020863,2]
[350005449,1737562235198,-500.0,0.00020863,2]
[350005450,1737562235210,-500.0,0.00020863,2]
[350005451,1737562235219,-500.0,0.00020863,2]
[350005452,1737562235229,-500.0,0.00020863,2]
[350005453,1737562235238,-500.0,0.00020863,2]
[350005454,1737562235249,-500.0,0.00020863,2]
[350005455,1737562235259,-500.0,0.00020863,2]
[350005456,1737562235268,-500.0,0.00020863,2]
[350005457,1737562235277,-500.0,0.00020863,2]
[350005458,1737562235287,-361.1027436,0.00020863,2]
[350005459,1737562235297,-682.01,0.00020863,2]
[350005460,1737562235306,-500.0,0.00020863,2]
[350005461,1737562235316,-567.21345459,0.00020863,2]
[350005462,1737562235326,-500.0,0.00020863,2]
[350005463,1737562235336,-500.0,0.00020863,2]
[350005464,1737562235345,-500.0,0.00020863,2]
[350005465,1737562235356,-539.36392857,0.00020863,2]
[350005466,1737562235365,-500.0,0.00020863,2]
[350005467,1737562235374,-500.0,0.00020863,2]
[350005468,1737562235384,-500.0,0.00020863,2]
[350005469,1737562235395,-500.0,0.00020863,2]
[350005470,1737562235405,-500.0,0.00020863,2]
[350005471,1737562235414,-509.27741876,0.00020863,2]
[350005472,1737562235424,-500.0,0.00020863,2]
[350005473,1737562235434,-746.69,0.00020863,2]
[350005474,1737562235445,-500.0,0.00020863,2]
[350005475,1737562235455,-500.0,0.00020863,2]
[350005476,1737562235464,-500.0,0.00020863,2]
[350005477,1737562235473,-500.0,0.00020863,2]
[350005478,1737562235483,-533.16831985,0.00020863,2]
[350005479,1737562235492,-503.2182087,0.00020863,2]
[350005480,1737562235501,-500.0,0.00020863,2]
[350005481,1737562235510,-529.904789,0.00020863,2]
[350005482,1737562235519,-500.0,0.00020863,2]
[350005483,1737562235529,-500.0,0.00020863,2]
[350005484,1737562235539,-507.4186297,0.00020863,2]
[350005485,1737562235548,-500.0,0.00020863,2]
[350005486,1737562235557,-933.18,0.00020863,2]
[350005487,1737562235567,-500.0,0.00020863,2]
[350005488,1737562235576,-500.0,0.00020863,2]
[350005489,1737562235585,-508.49051132,0.00020863,2]
[350005490,1737562235595,-500.0,0.00020863,2]
[350005491,1737562235605,-806.68,0.00020863,2]
[350005492,1737562235614,-500.0,0.00020863,2]
[350005493,1737562235624,-500.0,0.00020863,2]
[350005494,1737562235633,-566.80374078,0.00020863,2]
[350005495,1737562235642,-500.0,0.00020863,2]
[350005496,1737562235651,-497.82729431,0.00020863,2]
[350005497,1737562235660,-500.0,0.00020863,2]
[350005498,1737562235670,-500.0,0.00020863,2]
[350005499,1737562235679,-500.0,0.00020863,2]
[350005500,1737562235689,-503.20117914,0.00020863,2]
[350005501,1737562235703,-471.20716459,0.00020863,2]
[350005502,1737562235712,-177.04524844,0.00020863,2]
[350005503,1737562235721,-500.0,0.00020863,2]
[350005504,1737562235731,-637.91,0.00020863,2]
[350005505,1737562235742,-500.0,0.00020863,2]
[350005506,1737562235751,-502.86962572,0.00020863,2]
[350005507,1737562235760,-500.0,0.00020863,2]
[350005508,1737562235769,-500.0,0.00020863,2]
[350005509,1737562235779,-800.87,0.00020863,2]
[350005510,1737562235789,-729.0,0.00020863,2]
[350005511,1737562235799,-500.0,0.00020863,2]
[350005512,1737562235808,-500.0,0.00020863,2]
[350005513,1737562235819,-500.0,0.00020863,2]
[350005514,1737562235828,-612.98,0.00020863,2]
[350005515,1737562235837,-500.0,0.00020863,2]
[350005516,1737562235847,-500.0,0.00020863,2]
[350005517,1737562235856,-500.0,0.00020863,2]
[350005518,1737562235865,-500.0,0.00020863,2]
[350005519,1737562235874,-500.0,0.00020863,2]
[350005520,1737562235883,-514.8741424,0.00020863,2]
[350005521,1737562235892,-500.0,0.00020863,2]
[350005522,1737562235902,-500.0,0.00020863,2]
[350005523,1737562235912,-192.4938656,0.00020863,2]
[350005524,1737562235921,-500.0,0.00020863,2]
[350005525,1737562235931,-1125.41,0.00020863,2]
[350005526,1737562235940,-500.0,0.00020863,2]
[350005527,1737562235953,-551.38015705,0.00020863,2]
[350005528,1737562235964,-500.0,0.00020863,2]
[350005529,1737562235974,-500.0,0.00020863,2]
[350005530,1737562235983,-500.0,0.00020863,2]
[350005531,1737562235997,-500.0,0.00020863,2]
[350005532,1737562236006,-500.0,0.00020863,2]
[350005533,1737562236016,-500.0,0.00020863,2]
[350005534,1737562236026,-500.0,0.00020863,2]
[350005535,1737562236035,-629.05,0.00020863,2]
[350005536,1737562236045,-1117.77,0.00020863,2]
[350005537,1737562236055,-634.5,0.00020863,2]
[350005538,1737562236064,-462.71264887,0.00020863,2]
[350005539,1737562236074,-166.75357242,0.00020863,2]
[350005540,1737562236084,-500.0,0.00020863,2]
[350005541,1737562236094,-500.0,0.00020863,2]
[350005542,1737562236104,-1573.39,0.00020863,2]
[350005543,1737562236113,-500.0,0.00020863,2]
[350005544,1737562236123,-500.0,0.00020863,2]
[350005545,1737562236132,-241.06650883,0.00020863,2]
[350005546,1737562236183,-407.31349117,0.00020863,2]
[350005547,1737562236195,-500.0,0.00020863,2]
[350005548,1737562236205,-500.0,0.00020863,2]
[350005549,1737562236218,-500.0,0.00020863,2]
[350005550,1737562236228,-500.0,0.00020863,2]
[350005551,1737562236237,-500.0,0.00020863,2]
[350005552,1737562236247,-388.78650886,0.00020863,2]
[350005557,1737562237991,-318.20514,0.00020118,2]
[350005558,1737562238043,-2043.69486,0.00020118,2]
[350005559,1737562238054,-241.99349114,0.00020863,2]
[350005560,1737562238064,-451.42611847,0.00020863,2]
[350005561,1737562238075,-1197.05388153,0.00020863,2]
[350005562,1737562238085,-500.0,0.00020863,2]
[350005563,1737562238094,-500.0,0.00020863,2]
[350005564,1737562238104,-762.04,0.00020863,2]
[350005565,1737562238115,-500.0,0.00020863,2]
[350005566,1737562238125,-500.0,0.00020863,2]
[350005567,1737562238135,-500.0,0.00020863,2]
[350005568,1737562238145,-500.0,0.00020863,2]
[350005569,1737562238155,-929.37,0.00020863,2]
[350005570,1737562238166,-500.0,0.00020863,2]
[350005571,1737562238178,-500.0,0.00020863,2]
[350005572,1737562238188,-236.3803771,0.00020863,2]
[350005573,1737562238199,-770.44,0.00020863,2]
[350005574,1737562238211,-1939.91,0.00020863,2]
[350005575,1737562238220,-500.0,0.00020863,2]
[350005576,1737562238229,-500.0,0.00020863,2]
[350005577,1737562238239,-2051.91384139,0.00020863,2]
[350005578,1737562238254,-700.55615861,0.00020863,2]
[350005579,1737562238264,-503.97257605,0.00020863,2]
[350005580,1737562238273,-251.82601275,0.00020863,2]
[350005581,1737562238283,-1175.72,0.00020863,2]
[350005582,1737562238292,-500.0,0.00020863,2]
[350005583,1737562238301,-735.2,0.00020863,2]
[350005584,1737562238311,-500.0,0.00020863,2]
[350005585,1737562238320,-1617.33,0.00020863,2]
[350005586,1737562238330,-3171.39,0.00020863,2]
[350005587,1737562238341,-500.0,0.00020863,2]
[350005588,1737562238352,-662.96,0.00020863,2]
[350005589,1737562238362,-1057.58,0.00020863,2]
[350005590,1737562238372,-592.69135887,0.00020863,2]
[350005591,1737562238381,-500.0,0.00020863,2]
[350005592,1737562238391,-950.45,0.00020863,2]
[350005593,1737562238401,-500.0,0.00020863,2]
[350005594,1737562238410,-500.0,0.00020863,2]
[350005595,1737562238420,-500.0,0.00020863,2]
[350005596,1737562238429,-500.0,0.00020863,2]
[350005597,1737562238438,-500.0,0.00020863,2]
[350005598,1737562238449,-1271.09,0.00020863,2]
[350005599,1737562238458,-500.0,0.00020863,2]
[350005600,1737562238467,-500.0,0.00020863,2]
[350005601,1737562238477,-514.76,0.00020863,2]
[350005602,1737562238486,-500.0,0.00020863,2]
[350005603,1737562238495,-902.88,0.00020863,2]
[350005604,1737562238505,-1506.37,0.00020863,2]
[350005605,1737562238514,-500.0,0.00020863,2]
[350005606,1737562238523,-159.25409541,0.00020863,2]
[350005607,1737562238532,-500.0,0.00020863,2]
[350005608,1737562238542,-384.08,0.00020863,2]
[350005609,1737562238551,-1263.79,0.00020863,2]
[350005610,1737562238560,-714.93,0.00020863,2]
[350005611,1737562238569,-150.0,0.00020864,2]
[350005612,1737562238579,-1176.0,0.00020864,2]
[350005613,1737562238588,-3903.0,0.00020864,2]
[350005614,1737562238598,-1106.0,0.00020864,2]
[350005615,1737562238607,-500.0,0.00020864,2]
[350005616,1737562238617,-882.69,0.00020864,2]
[350005617,1737562238626,-500.0,0.00020864,2]
[350005618,1737562238635,-500.0,0.00020864,2]
[350005619,1737562238645,-320.41453418,0.00020864,2]
[350005620,1737562238657,-608.38546582,0.00020864,2]
[350005621,1737562238666,-110.27445035,0.00020864,2]
[350005622,1737562238685,-1461.66554965,0.00020864,2]
[350005623,1737562238694,-818.9,0.00020864,2]
[350005624,1737562238704,-500.0,0.00020864,2]
[350005625,1737562238713,-1003.25,0.00020864,2]
[350005626,1737562238723,-945.0,0.00020864,2]
[350005627,1737562238733,-1252.55,0.00020864,2]
[350005628,1737562238742,-541.06,0.00020864,2]
[350005629,1737562238752,-2719.05,0.00020864,2]
[350005630,1737562238762,-5497.74,0.00020864,2]
[350005631,1737562238771,-500.0,0.00020864,2]
[350005632,1737562238780,-906.89,0.00020864,2]
[350005633,1737562238789,-843.49,0.00020864,2]
[350005634,1737562238799,-907.57,0.00020864,2]
[350005635,1737562238809,-2046.53,0.00020864,2]
[350005636,1737562238818,-500.0,0.00020864,2]
[350005637,1737562238828,-926.52,0.00020864,2]
[350005638,1737562238837,-1053.09,0.00020864,2]
[350005639,1737562238847,-1151.79,0.00020864,2]
[350005640,1737562238856,-500.0,0.00020864,2]
[350005641,1737562238866,-1000.0,0.00020864,2]
[350005642,1737562238875,-1037.09,0.00020864,2]
[350005643,1737562238885,-500.0,0.00020864,2]
[350005644,1737562238895,-1781.74,0.00020864,2]
[350005645,1737562238905,-1725.02,0.00020864,2]
[350005646,1737562238914,-500.0,0.00020865,2]
[350005647,1737562238924,-500.0,0.00020865,2]
[350005648,1737562238934,-500.0,0.00020865,2]
[350005649,1737562238943,-500.0,0.00020865,7]
[350005650,1737562238953,-500.0,0.00020865,2]
[350005651,1737562238962,-500.0,0.00020865,2]
[350005652,1737562238971,-500.0,0.00020865,2]
[350005653,1737562238981,-500.0,0.00020865,2]
[350005654,1737562238990,-500.0,0.00020865,2]
[350005655,1737562238999,-500.0,0.00020865,2]
[350005656,1737562239009,-500.0,0.00020865,2]
[350005657,1737562239019,-500.0,0.00020865,2]
[350005658,1737562239029,-500.0,0.00020865,2]
[350005659,1737562239040,-500.0,0.00020865,2]
[350005660,1737562239049,-500.0,0.00020865,2]
[350005661,1737562239059,-500.0,0.00020865,2]
[350005662,1737562239068,-513.40232902,0.00020865,2]
[350005663,1737562239078,-500.0,0.00020865,2]
[350005664,1737562239088,-500.0,0.00020865,2]
[350005665,1737562239097,-500.0,0.00020865,2]
[350005666,1737562239106,-500.0,0.00020865,2]
[350005667,1737562239116,-500.0,0.00020865,2]
[350005668,1737562239125,-500.0,0.00020865,2]
[350005669,1737562239134,-505.18258187,0.00020865,2]
[350005670,1737562239143,-500.0,0.00020865,2]
[350005671,1737562239152,-500.0,0.00020865,2]
[350005672,1737562239163,-500.0,0.00020865,2]
[350005673,1737562239172,-500.0,0.00020865,2]
[350005674,1737562239181,-500.0,0.00020865,2]
[350005675,1737562239190,-500.0,0.00020865,2]
[350005676,1737562239202,-500.0,0.00020865,2]
[350005677,1737562239211,-500.0,0.00020865,2]
[350005678,1737562239220,-500.0,0.00020865,2]
[350005679,1737562239230,-500.0,0.00020865,2]
[350005680,1737562239239,-500.0,0.00020865,2]
[350005681,1737562239251,-500.0,0.00020865,2]
[350005682,1737562239259,-500.0,0.00020865,2]
[350005683,1737562239269,-500.0,0.00020865,2]
[350005684,1737562239277,-378.60413182,0.00020865,2]
[350005685,1737562239287,-500.0,0.00020865,2]
[350005686,1737562239296,-223.75000461,0.00020865,2]
[350005687,1737562239305,-500.0,0.00020865,2]
[350005688,1737562239315,-500.0,0.00020865,2]
[350005689,1737562239324,-500.0,0.00020865,2]
[350005690,1737562239333,-500.0,0.00020865,2]
[350005691,1737562239342,-500.0,0.00020865,2]
[350005692,1737562239352,-241.95654461,0.00020865,2]
[350005693,1737562239361,-162.42,0.00020865,2]
[350005694,1737562239371,-500.0,0.00020865,2]
[350005695,1737562239380,-500.0,0.00020865,2]
[350005696,1737562239389,-500.0,0.00020865,2]
[350005697,1737562239398,-500.0,0.00020865,2]
[350005698,1737562239408,-500.0,0.00020865,2]
[350005699,1737562239417,-504.24095817,0.00020865,2]
[350005700,1737562239426,-500.0,0.00020865,2]
[350005701,1737562239435,-500.0,0.00020865,2]
[350005702,1737562239446,-500.0,0.00020873,2]
[350005703,1737562239455,-636.000004,0.00020892,2]
[350005704,1737562239465,-550.13158576,0.00020893,2]
[350005705,1737562239474,-200.0,0.00020904,2]
[350005706,1737562239484,-953.46916084,0.00020907,2]
[350005707,1737562239493,-636.000004,0.00020909,2]
[350005708,1737562239503,-500.0,0.00020911,2]
[350005709,1737562239512,-500.0,0.00020911,2]
[350005710,1737562239521,-500.0,0.00020911,2]
[350005711,1737562239530,-550.13158576,0.00020911,2]
[350005712,1737562239539,-500.0,0.00020912,2]
[350005713,1737562239548,-552.87,0.00020912,2]
[350005714,1737562239562,-500.0,0.00020912,2]
[350005715,1737562239575,-500.7,0.00020912,2]
[350005716,1737562239585,-500.0,0.00020912,2]
[350005717,1737562239595,-500.0,0.00020912,2]
[350005718,1737562239604,-500.0,0.00020912,2]
[350005719,1737562239613,-500.0,0.00020912,2]
[350005720,1737562239623,-500.0,0.00020912,2]
[350005721,1737562239632,-517.23,0.00020912,2]
[350005722,1737562239642,-500.0,0.00020912,2]
[350005723,1737562239654,-500.0,0.00020912,2]
[350005724,1737562239666,-500.0,0.00020912,2]
[350005725,1737562239675,-500.0,0.00020912,2]
[350005726,1737562239685,-500.0,0.00020912,2]
[350005727,1737562239694,-500.0,0.00020912,2]
[350005728,1737562239706,-500.0,0.00020912,2]
[350005729,1737562239716,-500.0,0.00020912,2]
[350005730,1737562239725,-500.0,0.00020912,2]
[350005731,1737562239735,-500.0,0.00020912,2]
[350005732,1737562239745,-500.0,0.00020912,2]
[350005733,1737562239754,-500.0,0.00020912,2]
[350005734,1737562239763,-500.0,0.00020912,2]
[350005735,1737562239773,-650.22,0.00020912,2]
[350005736,1737562239782,-500.0,0.00020912,2]
[350005737,1737562239972,-500.0,0.00020912,2]
[350005739,1737562239982,-504.82044277,0.00020912,2]
[350005740,1737562239991,-500.0,0.00020912,2]
[350005741,1737562240000,-500.0,0.00020912,2]
[350005742,1737562240011,-532.92,0.00020912,2]
[350005743,1737562240020,-500.0,0.00020912,2]
[350005744,1737562240030,-500.0,0.00020912,2]
[350005746,1737562240041,-500.0,0.00020912,2]
[350005747,1737562240050,-500.0,0.00020912,2]
[350005748,1737562240060,-500.0,0.00020912,2]
[350005749,1737562240071,-500.0,0.00020912,2]
[350005750,1737562240080,-500.0,0.00020912,2]
[350005751,1737562240089,-500.0,0.00020912,2]
[350005752,1737562240099,-500.0,0.00020912,2]
[350005753,1737562240108,-500.0,0.00020912,2]
[350005754,1737562240119,-500.0,0.00020912,2]
[350005755,1737562240130,-562.21,0.00020912,2]
[350005756,1737562240139,-500.0,0.00020912,2]
[350005757,1737562240149,-500.0,0.00020912,2]
[350005758,1737562240158,-543.22,0.00020912,2]
[350005759,1737562240173,-715.79,0.00020912,2]
[350005760,1737562240182,-561.14,0.00020912,2]
[350005761,1737562240191,-879.98,0.00020912,2]
[350005762,1737562240205,-500.0,0.00020912,2]
[350005763,1737562240216,-213.1523031,0.00020912,2]
[350005764,1737562240225,-500.0,0.00020912,2]
[350005765,1737562240235,-500.0,0.00020912,2]
[350005766,1737562240244,-500.0,0.00020912,2]
[350005767,1737562240254,-500.0,0.00020912,2]
[350005768,1737562240263,-500.0,0.00020912,2]
[350005769,1737562240273,-500.0,0.00020912,2]
[350005770,1737562240282,-890.09,0.00020912,2]
[350005771,1737562240292,-500.0,0.00020912,2]
[350005772,1737562240302,-624.08,0.00020912,2]
[350005773,1737562240311,-801.09,0.00020912,2]
[350005774,1737562240321,-500.0,0.00020912,2]
[350005775,1737562240330,-500.0,0.00020912,2]
[350005776,1737562240339,-500.0,0.00020912,2]
[350005777,1737562240349,-500.0,0.00020912,2]
[350005778,1737562240358,-500.0,0.00020912,2]
[350005779,1737562240368,-500.0,0.00020912,2]
[350005780,1737562240378,-500.0,0.00020912,2]
[350005781,1737562240387,-509.55,0.00020912,2]
[350005782,1737562240397,-500.0,0.00020912,2]
[350005783,1737562240406,-500.0,0.00020912,2]
[350005784,1737562240416,-500.0,0.00020912,2]
[350005785,1737562240425,-500.0,0.00020912,2]
[350005786,1737562240434,-553.94,0.00020912,2]
[350005787,1737562240445,-500.0,0.00020912,2]
[350005788,1737562240455,-500.0,0.00020912,2]
[350005789,1737562240464,-500.0,0.00020912,2]
[350005790,1737562240474,-500.0,0.00020912,2]
[350005791,1737562240483,-513.69,0.00020912,2]
[350005792,1737562240492,-500.0,0.00020912,2]
[350005793,1737562240502,-783.8,0.00020912,2]
[350005794,1737562240512,-500.0,0.00020912,2]
[350005795,1737562240522,-500.0,0.00020912,2]